[Event "Early-Titled-Tuesday-Blitz-October-10-2023"]
[Site "Chess.com"]
[Date "2023.10.10"]
[Round "6"]
[White "Russian_berezka"]
[Black "Zq1"]
[Result "1-0"]
[WhiteElo "2653"]
[BlackElo "2513"]
[TimeControl "180+1"]
[EndTime "9:05:14 PDT"]
[Termination "Russian_berezka won on time"]

1. d4 {[%clk 0:03:00.9]} 1... Nf6 {[%clk 0:02:59.4]} 2. c4 {[%clk 0:03:01.6]}
2... a6 {[%clk 0:02:59.3]} 3. Nc3 {[%clk 0:02:56.7]} 3... c5 {[%clk 0:02:58.3]}
4. dxc5 {[%clk 0:02:50.2]} 4... e6 {[%clk 0:02:56.7]} 5. Na4 {[%clk 0:02:44.3]}
5... Ne4 {[%clk 0:02:49.7]} 6. a3 {[%clk 0:02:21.2]} 6... Nxc5 {[%clk
0:02:44.9]} 7. Nxc5 {[%clk 0:02:20]} 7... Bxc5 {[%clk 0:02:44.7]} 8. Nf3 {[%clk
0:02:18.8]} 8... b5 {[%clk 0:02:38.2]} 9. b4 {[%clk 0:02:16.8]} 9... Be7 {[%clk
0:02:31.9]} 10. e3 {[%clk 0:02:11.4]} 10... bxc4 {[%clk 0:02:28.6]} 11. Bxc4
{[%clk 0:02:12.3]} 11... O-O {[%clk 0:02:27.5]} 12. Bb2 {[%clk 0:02:11.6]} 12...
a5 {[%clk 0:02:25.6]} 13. O-O {[%clk 0:02:03.2]} 13... d5 {[%clk 0:02:19.9]} 14.
Bd3 {[%clk 0:02:01.1]} 14... Bf6 {[%clk 0:02:03.7]} 15. Nd4 {[%clk 0:01:48.2]}
15... axb4 {[%clk 0:01:57]} 16. axb4 {[%clk 0:01:47.5]} 16... Rxa1 {[%clk
0:01:56.9]} 17. Qxa1 {[%clk 0:01:48.2]} 17... Qb6 {[%clk 0:01:55.1]} 18. b5
{[%clk 0:01:41.1]} 18... Bb7 {[%clk 0:01:33.7]} 19. Rc1 {[%clk 0:01:38.3]} 19...
Nd7 {[%clk 0:01:28.2]} 20. Qa3 {[%clk 0:01:19.6]} 20... Ra8 {[%clk 0:01:21.7]}
21. Qb4 {[%clk 0:01:19.8]} 21... g6 {[%clk 0:01:14.3]} 22. h3 {[%clk 0:01:19.6]}
22... Ne5 {[%clk 0:00:57.9]} 23. Bf1 {[%clk 0:01:17.4]} 23... Nd7 {[%clk
0:00:50.2]} 24. Ra1 {[%clk 0:00:57.3]} 24... Rxa1 {[%clk 0:00:43.5]} 25. Bxa1
{[%clk 0:00:58.2]} 25... e5 {[%clk 0:00:40.1]} 26. Nb3 {[%clk 0:00:57.6]} 26...
Kg7 {[%clk 0:00:35.1]} 27. Bc3 {[%clk 0:00:47.1]} 27... h5 {[%clk 0:00:28.8]}
28. Qa5 {[%clk 0:00:46.8]} 28... Qxa5 {[%clk 0:00:22.8]} 29. Bxa5 {[%clk
0:00:42.6]} 29... d4 {[%clk 0:00:19.9]} 30. Bc4 {[%clk 0:00:32.2]} 30... dxe3
{[%clk 0:00:17.9]} 31. fxe3 {[%clk 0:00:33.1]} 31... e4 {[%clk 0:00:17.3]} 32.
Bc7 {[%clk 0:00:28.4]} 32... Ne5 {[%clk 0:00:14.5]} 33. Na5 {[%clk 0:00:24.4]}
33... Nxc4 {[%clk 0:00:13.3]} 34. Nxc4 {[%clk 0:00:23.2]} 34... Bd5 {[%clk
0:00:11.1]} 35. Nb6 {[%clk 0:00:13]} 35... Bb7 {[%clk 0:00:09.8]} 36. Nd7 {[%clk
0:00:12.4]} 36... Bc3 {[%clk 0:00:08.8]} 37. Nc5 {[%clk 0:00:11.4]} 37... Bd5
{[%clk 0:00:07.5]} 38. b6 {[%clk 0:00:09.1]} 38... Ba5 {[%clk 0:00:07.3]} 39.
Kf2 {[%clk 0:00:05.1]} 39... f6 {[%clk 0:00:07]} 40. Ke2 {[%clk 0:00:04.6]}
40... Kf7 {[%clk 0:00:07.3]} 41. g4 {[%clk 0:00:04.3]} 41... hxg4 {[%clk
0:00:06.2]} 42. hxg4 {[%clk 0:00:05.2]} 42... f5 {[%clk 0:00:06.4]} 43. gxf5
{[%clk 0:00:05.2]} 43... gxf5 {[%clk 0:00:06.5]} 44. Kf2 {[%clk 0:00:05.9]}
44... Ke7 {[%clk 0:00:06.7]} 45. Kg3 {[%clk 0:00:06]} 45... Kf6 {[%clk
0:00:06.6]} 46. Bd8+ {[%clk 0:00:05.5]} 46... Ke5 {[%clk 0:00:05.2]} 47. b7
{[%clk 0:00:05]} 47... Bxb7 {[%clk 0:00:02.5]} 48. Bxa5 {[%clk 0:00:05]} 1-0

[Event "Early-Titled-Tuesday-Blitz-October-10-2023"]
[Site "Chess.com"]
[Date "2023.10.10"]
[Round "6"]
[White "AnaKuchava"]
[Black "JohnnyAnto"]
[Result "1-0"]
[WhiteElo "2262"]
[BlackElo "2410"]
[TimeControl "180+1"]
[EndTime "9:05:14 PDT"]
[Termination "AnaKuchava won by checkmate"]

1. d4 {[%clk 0:03:00.9]} 1... Nf6 {[%clk 0:02:59.1]} 2. Nf3 {[%clk 0:03:00.9]}
2... e6 {[%clk 0:02:59.3]} 3. c4 {[%clk 0:02:55.2]} 3... b6 {[%clk 0:02:59.3]}
4. a3 {[%clk 0:02:54.4]} 4... Bb7 {[%clk 0:02:59.4]} 5. Nc3 {[%clk 0:02:53.6]}
5... d5 {[%clk 0:03:00]} 6. cxd5 {[%clk 0:02:53.5]} 6... Nxd5 {[%clk 0:03:00.9]}
7. e3 {[%clk 0:02:46.3]} 7... Be7 {[%clk 0:02:58.9]} 8. Bd3 {[%clk 0:02:44.7]}
8... Nxc3 {[%clk 0:02:57.4]} 9. bxc3 {[%clk 0:02:44.5]} 9... Nd7 {[%clk
0:02:58.3]} 10. O-O {[%clk 0:02:44.2]} 10... c5 {[%clk 0:02:58.3]} 11. Qe2
{[%clk 0:02:40.5]} 11... O-O {[%clk 0:02:57.2]} 12. e4 {[%clk 0:02:34.9]} 12...
Re8 {[%clk 0:02:55.4]} 13. Bb2 {[%clk 0:02:34.1]} 13... Qc7 {[%clk 0:02:54.2]}
14. Rac1 {[%clk 0:02:32.9]} 14... Rac8 {[%clk 0:02:51]} 15. Rfd1 {[%clk
0:02:31.9]} 15... Qf4 {[%clk 0:02:45.3]} 16. Qe3 {[%clk 0:02:08.4]} 16... Qxe3
{[%clk 0:02:30.7]} 17. fxe3 {[%clk 0:02:07.8]} 17... c4 {[%clk 0:02:31]} 18. Bc2
{[%clk 0:01:57]} 18... e5 {[%clk 0:02:31.5]} 19. a4 {[%clk 0:01:45.9]} 19... Bc6
{[%clk 0:02:29.8]} 20. Ra1 {[%clk 0:01:39.9]} 20... f6 {[%clk 0:02:26.8]} 21.
Ba3 {[%clk 0:01:18.6]} 21... Kf7 {[%clk 0:02:22.9]} 22. Bxe7 {[%clk 0:01:07.8]}
22... Kxe7 {[%clk 0:02:21.4]} 23. Nh4 {[%clk 0:01:05.2]} 23... g6 {[%clk
0:02:19.6]} 24. Rf1 {[%clk 0:01:03.3]} 24... a6 {[%clk 0:02:15.2]} 25. Kf2
{[%clk 0:00:54.8]} 25... Kd6 {[%clk 0:02:10]} 26. Rfe1 {[%clk 0:00:49.2]} 26...
Re7 {[%clk 0:02:08.1]} 27. Nf3 {[%clk 0:00:45.7]} 27... Rce8 {[%clk 0:02:07.3]}
28. Nd2 {[%clk 0:00:45.6]} 28... b5 {[%clk 0:01:35.2]} 29. axb5 {[%clk
0:00:46.5]} 29... Bxb5 {[%clk 0:01:30.1]} 30. Ba4 {[%clk 0:00:38.6]} 30... Nb6
{[%clk 0:01:29.5]} 31. Bxb5 {[%clk 0:00:36.5]} 31... axb5 {[%clk 0:01:30.4]} 32.
Ra5 {[%clk 0:00:31]} 32... f5 {[%clk 0:01:09.6]} 33. Rxb5 {[%clk 0:00:23.8]}
33... Kc6 {[%clk 0:01:10.2]} 34. Rc5+ {[%clk 0:00:23.9]} 34... Kb7 {[%clk
0:01:10.8]} 35. exf5 {[%clk 0:00:19.6]} 35... exd4 {[%clk 0:01:10.6]} 36. cxd4
{[%clk 0:00:19]} 36... Nd7 {[%clk 0:00:35.3]} 37. Rxc4 {[%clk 0:00:18.8]} 37...
gxf5 {[%clk 0:00:35.4]} 38. Rb1+ {[%clk 0:00:17.9]} 38... Nb6 {[%clk 0:00:34.9]}
39. Rcb4 {[%clk 0:00:18.1]} 39... Re6 {[%clk 0:00:35.6]} 40. Nc4 {[%clk
0:00:17.7]} 40... Kc7 {[%clk 0:00:34]} 41. Rxb6 {[%clk 0:00:17.1]} 41... Rxb6
{[%clk 0:00:34.7]} 42. Rxb6 {[%clk 0:00:17.7]} 42... f4 {[%clk 0:00:35.2]} 43.
exf4 {[%clk 0:00:17.2]} 43... Re4 {[%clk 0:00:36.1]} 44. Rd6 {[%clk 0:00:16.5]}
44... Rxf4+ {[%clk 0:00:36.2]} 45. Ke3 {[%clk 0:00:16.2]} 45... Rf1 {[%clk
0:00:35.3]} 46. Rh6 {[%clk 0:00:15.9]} 46... Rf7 {[%clk 0:00:32.7]} 47. Ne5
{[%clk 0:00:15.6]} 47... Rg7 {[%clk 0:00:33.5]} 48. g4 {[%clk 0:00:14.6]} 48...
Kd8 {[%clk 0:00:33.2]} 49. Kf4 {[%clk 0:00:14.7]} 49... Ke7 {[%clk 0:00:33.6]}
50. h4 {[%clk 0:00:14]} 50... Kd8 {[%clk 0:00:32.1]} 51. g5 {[%clk 0:00:14.4]}
51... Ke7 {[%clk 0:00:32.8]} 52. h5 {[%clk 0:00:14.3]} 52... Kf8 {[%clk
0:00:33.4]} 53. g6 {[%clk 0:00:14.5]} 53... hxg6 {[%clk 0:00:33.8]} 54. hxg6
{[%clk 0:00:15.4]} 54... Kg8 {[%clk 0:00:33.4]} 55. Kg5 {[%clk 0:00:15.2]} 55...
Ra7 {[%clk 0:00:33.2]} 56. Rh7 {[%clk 0:00:14.1]} 56... Ra1 {[%clk 0:00:33.2]}
57. Rd7 {[%clk 0:00:13.8]} 57... Rg1+ {[%clk 0:00:33.6]} 58. Ng4 {[%clk
0:00:14.4]} 58... Re1 {[%clk 0:00:32.9]} 59. g7 {[%clk 0:00:13.3]} 59... Rg1
{[%clk 0:00:32]} 60. d5 {[%clk 0:00:12]} 60... Rg2 {[%clk 0:00:32.1]} 61. d6
{[%clk 0:00:12.2]} 61... Rg1 {[%clk 0:00:31.2]} 62. Re7 {[%clk 0:00:12]} 62...
Rd1 {[%clk 0:00:31]} 63. Nf6# {[%clk 0:00:11.3]} 1-0

[Event "Early-Titled-Tuesday-Blitz-October-10-2023"]
[Site "Chess.com"]
[Date "2023.10.10"]
[Round "6"]
[White "Krlence"]
[Black "LangesNasenhaar"]
[Result "1-0"]
[WhiteElo "2451"]
[BlackElo "2546"]
[TimeControl "180+1"]
[EndTime "9:05:15 PDT"]
[Termination "Krlence won on time"]

1. e4 {[%clk 0:03:00.9]} 1... Nc6 {[%clk 0:02:59.3]} 2. Nf3 {[%clk 0:03:00.3]}
2... d6 {[%clk 0:02:59.3]} 3. Bc4 {[%clk 0:03:00]} 3... Nf6 {[%clk 0:02:59.4]}
4. d3 {[%clk 0:02:58.4]} 4... g6 {[%clk 0:02:56.5]} 5. h3 {[%clk 0:02:58.4]}
5... Bg7 {[%clk 0:02:56.8]} 6. O-O {[%clk 0:02:59]} 6... O-O {[%clk 0:02:55.3]}
7. c3 {[%clk 0:02:59.5]} 7... d5 {[%clk 0:02:51.7]} 8. exd5 {[%clk 0:02:59.4]}
8... Nxd5 {[%clk 0:02:51.9]} 9. Re1 {[%clk 0:02:58.4]} 9... e5 {[%clk
0:02:50.3]} 10. Bb3 {[%clk 0:02:58.7]} 10... Bf5 {[%clk 0:02:46.4]} 11. Bc2
{[%clk 0:02:58.2]} 11... Re8 {[%clk 0:02:45.3]} 12. Na3 {[%clk 0:02:55.8]} 12...
Nb6 {[%clk 0:02:41.4]} 13. Qe2 {[%clk 0:02:49]} 13... Qd7 {[%clk 0:02:35.9]} 14.
Be3 {[%clk 0:02:44.8]} 14... Rad8 {[%clk 0:02:31.8]} 15. Rad1 {[%clk 0:02:44.5]}
15... h6 {[%clk 0:02:26.2]} 16. Nh4 {[%clk 0:02:37.3]} 16... Be6 {[%clk
0:02:24]} 17. Bb3 {[%clk 0:02:34.2]} 17... Nd5 {[%clk 0:02:22]} 18. Bc1 {[%clk
0:02:31]} 18... Nf4 {[%clk 0:02:07.4]} 19. Bxf4 {[%clk 0:02:27.4]} 19... exf4
{[%clk 0:02:08.3]} 20. Qf1 {[%clk 0:02:17.5]} 20... Bxb3 {[%clk 0:01:51.4]} 21.
axb3 {[%clk 0:02:16.9]} 21... Qd5 {[%clk 0:01:42]} 22. b4 {[%clk 0:02:11.4]}
22... Qb3 {[%clk 0:01:28.8]} 23. Rxe8+ {[%clk 0:01:58.9]} 23... Rxe8 {[%clk
0:01:28.2]} 24. b5 {[%clk 0:01:54.4]} 24... Na5 {[%clk 0:01:20.7]} 25. Re1
{[%clk 0:01:16]} 25... Rd8 {[%clk 0:01:11.5]} 26. Qe2 {[%clk 0:01:09.5]} 26...
Bf8 {[%clk 0:00:56.2]} 27. Nc4 {[%clk 0:01:05.1]} 27... Qxb5 {[%clk 0:00:48.4]}
28. Qe4 {[%clk 0:01:00.4]} 28... Nxc4 {[%clk 0:00:39.2]} 29. dxc4 {[%clk
0:01:00]} 29... Qc6 {[%clk 0:00:31.1]} 30. Qxf4 {[%clk 0:00:52.7]} 30... Bd6
{[%clk 0:00:28.2]} 31. Qg4 {[%clk 0:00:50.8]} 31... Bf8 {[%clk 0:00:17.9]} 32.
Nf3 {[%clk 0:00:43.4]} 32... Qf6 {[%clk 0:00:17.7]} 33. Qe4 {[%clk 0:00:39.8]}
33... c6 {[%clk 0:00:16]} 34. Qe2 {[%clk 0:00:37]} 34... Kg7 {[%clk 0:00:16.1]}
35. Rd1 {[%clk 0:00:37.3]} 35... Rxd1+ {[%clk 0:00:14.1]} 36. Qxd1 {[%clk
0:00:38.2]} 36... Bc5 {[%clk 0:00:12.6]} 37. b4 {[%clk 0:00:35.7]} 37... Bd6
{[%clk 0:00:12.6]} 38. Qd3 {[%clk 0:00:34.9]} 38... Bc7 {[%clk 0:00:09.5]} 39.
c5 {[%clk 0:00:33.1]} 39... Qe6 {[%clk 0:00:06.5]} 40. Nd4 {[%clk 0:00:19.5]}
40... Qd5 {[%clk 0:00:05.5]} 41. c4 {[%clk 0:00:14]} 41... Qe5 {[%clk
0:00:05.6]} 42. g3 {[%clk 0:00:14]} 42... a5 {[%clk 0:00:04.3]} 43. Nf3 {[%clk
0:00:07.8]} 43... Qf6 {[%clk 0:00:03.6]} 44. bxa5 {[%clk 0:00:07]} 44... Bxa5
{[%clk 0:00:03.6]} 45. Qd7 {[%clk 0:00:05.7]} 45... Qxf3 {[%clk 0:00:02.7]} 46.
Qxb7 {[%clk 0:00:05.4]} 46... Be1 {[%clk 0:00:02.6]} 47. Qb2+ {[%clk 0:00:05.3]}
1-0

[Event "Early-Titled-Tuesday-Blitz-October-10-2023"]
[Site "Chess.com"]
[Date "2023.10.10"]
[Round "6"]
[White "vladgoncharov"]
[Black "chessfatbear"]
[Result "1/2-1/2"]
[WhiteElo "2526"]
[BlackElo "2803"]
[TimeControl "180+1"]
[EndTime "9:05:16 PDT"]
[Termination "Game drawn by agreement"]

1. d4 {[%clk 0:02:56.4]} 1... Nf6 {[%clk 0:02:58.8]} 2. c4 {[%clk 0:02:54.6]}
2... g6 {[%clk 0:02:59.7]} 3. Nc3 {[%clk 0:02:54.2]} 3... d5 {[%clk 0:03:00.6]}
4. cxd5 {[%clk 0:02:50.1]} 4... Nxd5 {[%clk 0:03:01.5]} 5. e4 {[%clk 0:02:50.2]}
5... Nxc3 {[%clk 0:03:01.8]} 6. bxc3 {[%clk 0:02:50.5]} 6... Bg7 {[%clk
0:03:02.7]} 7. Nf3 {[%clk 0:02:50.2]} 7... c5 {[%clk 0:03:03]} 8. Bb5+ {[%clk
0:02:49.9]} 8... Nc6 {[%clk 0:03:02.6]} 9. O-O {[%clk 0:02:49.6]} 9... O-O
{[%clk 0:03:01.8]} 10. Bxc6 {[%clk 0:02:49.6]} 10... bxc6 {[%clk 0:03:02.1]} 11.
Qc2 {[%clk 0:02:49.7]} 11... Bg4 {[%clk 0:03:00.3]} 12. Ne5 {[%clk 0:02:48.5]}
12... Bxe5 {[%clk 0:02:58.6]} 13. dxe5 {[%clk 0:02:48.3]} 13... c4 {[%clk
0:02:57.1]} 14. f3 {[%clk 0:02:45.4]} 14... Qb6+ {[%clk 0:02:54.3]} 15. Kh1
{[%clk 0:02:43.8]} 15... Be6 {[%clk 0:02:55.2]} 16. f4 {[%clk 0:02:36.8]} 16...
f5 {[%clk 0:02:47]} 17. exf6 {[%clk 0:02:35.7]} 17... exf6 {[%clk 0:02:47.5]}
18. Rf3 {[%clk 0:02:35.2]} 18... Rad8 {[%clk 0:02:46.2]} 19. Be3 {[%clk
0:02:33.1]} 19... c5 {[%clk 0:02:46.6]} 20. Qf2 {[%clk 0:02:07.4]} 20... Rc8
{[%clk 0:02:41.5]} 21. f5 {[%clk 0:02:05.6]} 21... gxf5 {[%clk 0:02:40.8]} 22.
Bh6 {[%clk 0:01:54.8]} 22... Rf7 {[%clk 0:02:37.3]} 23. Rg3+ {[%clk 0:01:39.7]}
23... Kh8 {[%clk 0:02:37.1]} 24. exf5 {[%clk 0:01:40.1]} 24... Bd5 {[%clk
0:02:36.1]} 25. Re1 {[%clk 0:01:39.9]} 25... Qc6 {[%clk 0:02:17.6]} 26. h3
{[%clk 0:01:35.8]} 26... Be4 {[%clk 0:02:10.9]} 27. Kh2 {[%clk 0:01:34.7]} 27...
Re8 {[%clk 0:02:07.3]} 28. Qf4 {[%clk 0:01:31.2]} 28... Qd5 {[%clk 0:02:03.3]}
29. Rge3 {[%clk 0:01:20.3]} 29... Rfe7 {[%clk 0:02:03.2]} 30. g4 {[%clk
0:01:17.6]} 30... Bh1 {[%clk 0:01:48.3]} 31. Kg3 {[%clk 0:01:06.5]} 31... Rxe3+
{[%clk 0:01:13.3]} 32. Rxe3 {[%clk 0:01:05.8]} 32... Rxe3+ {[%clk 0:01:14.2]}
33. Qxe3 {[%clk 0:01:05.7]} 33... Qd3 {[%clk 0:01:15.1]} 34. Kh4 {[%clk
0:00:50.6]} 34... Qxe3 {[%clk 0:01:13.9]} 35. Bxe3 {[%clk 0:00:49.5]} 35... Kg8
{[%clk 0:01:12.5]} 36. Bxc5 {[%clk 0:00:49.1]} 36... a6 {[%clk 0:01:13]} 37. Kh5
{[%clk 0:00:47.8]} 37... Bg2 {[%clk 0:01:10.6]} 38. Bd4 {[%clk 0:00:42.7]} 38...
Kf7 {[%clk 0:01:10.2]} 39. Kh4 {[%clk 0:00:36.4]} 39... Bf1 {[%clk 0:01:08.3]}
40. Kg3 {[%clk 0:00:35.8]} 40... a5 {[%clk 0:01:00.5]} 41. a3 {[%clk 0:00:35.5]}
41... a4 {[%clk 0:00:59.7]} 42. h4 {[%clk 0:00:35.6]} 42... Bd3 {[%clk
0:00:53.1]} 43. Kf4 {[%clk 0:00:35.5]} 43... h6 {[%clk 0:00:53.2]} 44. Bc5
{[%clk 0:00:33.4]} 44... Bc2 {[%clk 0:00:52.7]} 45. Be3 {[%clk 0:00:29.5]} 45...
Bd1 {[%clk 0:00:52.4]} 46. Kg3 {[%clk 0:00:28.7]} 46... Kg7 {[%clk 0:00:50.9]}
47. Bd4 {[%clk 0:00:28.4]} 47... Kf7 {[%clk 0:00:50.2]} 48. Kf4 {[%clk
0:00:28.3]} 48... Be2 {[%clk 0:00:49.4]} 49. g5 {[%clk 0:00:27]} 49... hxg5+
{[%clk 0:00:49]} 50. hxg5 {[%clk 0:00:27.5]} 50... fxg5+ {[%clk 0:00:49.9]} 51.
Kxg5 {[%clk 0:00:27.8]} 51... Bd1 {[%clk 0:00:49.2]} 52. Kf4 {[%clk 0:00:28.1]}
52... Bb3 {[%clk 0:00:50.1]} 53. Ke5 {[%clk 0:00:28.4]} 53... Ba2 {[%clk
0:00:51]} 54. Kd5 {[%clk 0:00:27.6]} 54... Bb3 {[%clk 0:00:51.9]} 55. Kc5 {[%clk
0:00:27.7]} 55... Ba2 {[%clk 0:00:52.3]} 56. Kd5 {[%clk 0:00:27.2]} 56... Bb3
{[%clk 0:00:53.2]} 57. Ke5 {[%clk 0:00:27.6]} 57... Ba2 {[%clk 0:00:53.9]} 58.
Bf2 {[%clk 0:00:28.3]} 58... Bb3 {[%clk 0:00:54.8]} 59. Bh4 {[%clk 0:00:28.2]}
59... Ba2 {[%clk 0:00:55.7]} 60. Kd4 {[%clk 0:00:28.4]} 60... Bb3 {[%clk
0:00:56.6]} 61. Kc5 {[%clk 0:00:28.9]} 61... Ba2 {[%clk 0:00:57.5]} 62. Kb4
{[%clk 0:00:29]} 62... Bb3 {[%clk 0:00:58.4]} 63. Kb5 {[%clk 0:00:29]} 63... Kg7
{[%clk 0:00:57.9]} 64. Be7 {[%clk 0:00:26]} 64... Kf7 {[%clk 0:00:58.8]} 65. f6
{[%clk 0:00:26.3]} 65... Ke6 {[%clk 0:00:59.2]} 66. Kc5 {[%clk 0:00:25.8]} 66...
Kf7 {[%clk 0:01:00.1]} 67. Kd5 {[%clk 0:00:26]} 67... Ba2 {[%clk 0:01:00.2]} 68.
Kd4 {[%clk 0:00:25.3]} 68... Bb3 {[%clk 0:01:01.1]} 69. Kc5 {[%clk 0:00:25.7]}
69... Ba2 {[%clk 0:01:01.6]} 70. Kb4 {[%clk 0:00:26.3]} 70... Bb3 {[%clk
0:01:01.7]} 71. Kc5 {[%clk 0:00:25.3]} 71... Ke6 {[%clk 0:01:02.6]} 72. Kd4
{[%clk 0:00:25.5]} 1/2-1/2

[Event "Early-Titled-Tuesday-Blitz-October-10-2023"]
[Site "Chess.com"]
[Date "2023.10.10"]
[Round "6"]
[White "Agibileg"]
[Black "Herman-NY"]
[Result "1-0"]
[WhiteElo "2700"]
[BlackElo "2530"]
[TimeControl "180+1"]
[EndTime "9:05:17 PDT"]
[Termination "Agibileg won by resignation"]

1. d4 {[%clk 0:03:00.9]} 1... Nf6 {[%clk 0:02:58.4]} 2. c4 {[%clk 0:02:54.3]}
2... g6 {[%clk 0:02:58.5]} 3. Nc3 {[%clk 0:02:52.8]} 3... Bg7 {[%clk 0:02:59.1]}
4. e4 {[%clk 0:02:51.9]} 4... d6 {[%clk 0:02:59.6]} 5. Be2 {[%clk 0:02:51.1]}
5... O-O {[%clk 0:03:00]} 6. Nf3 {[%clk 0:02:37]} 6... Nbd7 {[%clk 0:02:59.7]}
7. O-O {[%clk 0:02:11.2]} 7... e5 {[%clk 0:02:59.9]} 8. Be3 {[%clk 0:02:05.3]}
8... Ng4 {[%clk 0:02:59.8]} 9. Bg5 {[%clk 0:02:04.6]} 9... f6 {[%clk 0:03:00.1]}
10. Bh4 {[%clk 0:02:03.9]} 10... Nh6 {[%clk 0:03:00.6]} 11. d5 {[%clk
0:01:48.4]} 11... Nf7 {[%clk 0:02:55]} 12. b4 {[%clk 0:01:47.9]} 12... h5 {[%clk
0:02:47.9]} 13. h3 {[%clk 0:01:45.7]} 13... Bh6 {[%clk 0:02:46]} 14. Qc2 {[%clk
0:01:43.1]} 14... Ng5 {[%clk 0:02:27.1]} 15. c5 {[%clk 0:01:35.7]} 15... dxc5
{[%clk 0:02:23.1]} 16. bxc5 {[%clk 0:01:36.6]} 16... Nxc5 {[%clk 0:02:19.6]} 17.
Nxg5 {[%clk 0:01:36.1]} 17... Bxg5 {[%clk 0:02:14.3]} 18. Bxg5 {[%clk
0:01:33.2]} 18... fxg5 {[%clk 0:02:15.2]} 19. Nb5 {[%clk 0:01:32.5]} 19... b6
{[%clk 0:02:15.4]} 20. d6 {[%clk 0:01:29.2]} 20... cxd6 {[%clk 0:02:08.3]} 21.
Rad1 {[%clk 0:01:28.5]} 21... Rf6 {[%clk 0:02:03.8]} 22. Qd2 {[%clk 0:01:25.2]}
22... Ba6 {[%clk 0:00:53.4]} 23. Qxg5 {[%clk 0:01:03.4]} 23... Bxb5 {[%clk
0:00:52.1]} 24. Bxb5 {[%clk 0:01:02.8]} 24... Kg7 {[%clk 0:00:41.8]} 25. Bc6
{[%clk 0:00:50.4]} 25... Rc8 {[%clk 0:00:38.3]} 26. Bd5 {[%clk 0:00:48.9]} 26...
Qf8 {[%clk 0:00:23.4]} 27. Qe3 {[%clk 0:00:46.1]} 27... Rf4 {[%clk 0:00:21.7]}
28. Rd2 {[%clk 0:00:43.6]} 28... h4 {[%clk 0:00:20.6]} 29. Rfd1 {[%clk
0:00:42.7]} 29... Qf6 {[%clk 0:00:19.3]} 30. f3 {[%clk 0:00:40.3]} 30... Rf8
{[%clk 0:00:12.2]} 31. Bc4 {[%clk 0:00:36]} 31... Rd8 {[%clk 0:00:12.3]} 32. Qa3
{[%clk 0:00:35.5]} 32... Qe7 {[%clk 0:00:12.2]} 33. Rd5 {[%clk 0:00:30.3]} 33...
Rf6 {[%clk 0:00:11.9]} 34. Qb4 {[%clk 0:00:26]} 34... Rdf8 {[%clk 0:00:12.1]}
35. a4 {[%clk 0:00:25.4]} 35... Qc7 {[%clk 0:00:08.8]} 36. Bb5 {[%clk
0:00:20.4]} 36... a5 {[%clk 0:00:07.4]} 37. Qd2 {[%clk 0:00:19.8]} 37... Rd8
{[%clk 0:00:07.2]} 38. Qb2 {[%clk 0:00:18.5]} 38... Rdf8 {[%clk 0:00:05.8]} 39.
Qd2 {[%clk 0:00:18.2]} 39... Rd8 {[%clk 0:00:05.9]} 40. Qg5 {[%clk 0:00:18.4]}
40... Rf4 {[%clk 0:00:03.9]} 41. Rxe5 {[%clk 0:00:18]} 41... dxe5 {[%clk
0:00:04.3]} 42. Rxd8 {[%clk 0:00:17.5]} 42... Qf7 {[%clk 0:00:04.4]} 43. Qxe5+
{[%clk 0:00:10.5]} 43... Qf6 {[%clk 0:00:04.8]} 44. Qc7+ {[%clk 0:00:09.4]}
44... Kh6 {[%clk 0:00:04.4]} 45. Kh2 {[%clk 0:00:08.1]} 45... Rxf3 {[%clk
0:00:02.6]} 46. gxf3 {[%clk 0:00:07.1]} 46... Qxf3 {[%clk 0:00:03.4]} 47. Rh8+
{[%clk 0:00:05.4]} 47... Kg5 {[%clk 0:00:03.8]} 48. Qe5+ {[%clk 0:00:05.8]} 1-0

[Event "Early-Titled-Tuesday-Blitz-October-10-2023"]
[Site "Chess.com"]
[Date "2023.10.10"]
[Round "6"]
[White "Semen_Khanin"]
[Black "dropstoneDP"]
[Result "0-1"]
[WhiteElo "2863"]
[BlackElo "3069"]
[TimeControl "180+1"]
[EndTime "9:05:19 PDT"]
[Termination "dropstoneDP won by checkmate"]

1. e4 {[%clk 0:03:00.9]} 1... e5 {[%clk 0:02:57.5]} 2. Nf3 {[%clk 0:03:00.1]}
2... Nf6 {[%clk 0:02:52.9]} 3. Nc3 {[%clk 0:02:52.9]} 3... Nc6 {[%clk
0:02:52.5]} 4. h3 {[%clk 0:02:51.8]} 4... d5 {[%clk 0:02:52.1]} 5. exd5 {[%clk
0:02:51.7]} 5... Nxd5 {[%clk 0:02:53]} 6. Bb5 {[%clk 0:02:51.8]} 6... Nxc3
{[%clk 0:02:53.5]} 7. bxc3 {[%clk 0:02:52.4]} 7... Bd6 {[%clk 0:02:54.1]} 8. d4
{[%clk 0:02:52.6]} 8... Bd7 {[%clk 0:02:52.5]} 9. O-O {[%clk 0:02:50.8]} 9...
O-O {[%clk 0:02:52.9]} 10. Rb1 {[%clk 0:02:50.1]} 10... Re8 {[%clk 0:02:52.4]}
11. Bg5 {[%clk 0:02:45.3]} 11... Qc8 {[%clk 0:02:50.4]} 12. Re1 {[%clk
0:02:41.8]} 12... exd4 {[%clk 0:02:46]} 13. cxd4 {[%clk 0:02:38.5]} 13... h6
{[%clk 0:02:45.6]} 14. Be3 {[%clk 0:02:32.9]} 14... Ne7 {[%clk 0:02:33.2]} 15.
Bxd7 {[%clk 0:02:30.1]} 15... Qxd7 {[%clk 0:02:34.1]} 16. Rxb7 {[%clk 0:02:28]}
16... Nd5 {[%clk 0:02:31]} 17. Rb3 {[%clk 0:02:19.5]} 17... Qa4 {[%clk
0:02:27.8]} 18. Qb1 {[%clk 0:02:12.3]} 18... a5 {[%clk 0:02:15.4]} 19. Bd2
{[%clk 0:02:07]} 19... Rxe1+ {[%clk 0:02:14.5]} 20. Bxe1 {[%clk 0:02:07.4]}
20... Qc4 {[%clk 0:02:04.8]} 21. Rb8+ {[%clk 0:02:07]} 21... Rxb8 {[%clk
0:02:04.2]} 22. Qxb8+ {[%clk 0:02:07.9]} 22... Bf8 {[%clk 0:01:51.5]} 23. Qb3
{[%clk 0:02:04.3]} 23... Nb6 {[%clk 0:01:28.4]} 24. Bxa5 {[%clk 0:01:59.7]}
24... Qe2 {[%clk 0:01:28.2]} 25. Bxb6 {[%clk 0:01:57.9]} 25... Qd1+ {[%clk
0:01:26.6]} 26. Kh2 {[%clk 0:01:57.2]} 26... cxb6 {[%clk 0:01:16.2]} 27. Ne5
{[%clk 0:01:55.1]} 27... Qxd4 {[%clk 0:01:09.2]} 28. Qxf7+ {[%clk 0:01:54.4]}
28... Kh7 {[%clk 0:01:09.8]} 29. f4 {[%clk 0:01:37.7]} 29... Bc5 {[%clk
0:00:55.9]} 30. Nf3 {[%clk 0:01:16.5]} 30... Qe4 {[%clk 0:00:46]} 31. Nh4 {[%clk
0:00:59.6]} 31... Qe3 {[%clk 0:00:02.9]} 32. Qf5+ {[%clk 0:00:33.5]} 32... Kg8
{[%clk 0:00:03.2]} 33. Nf3 {[%clk 0:00:32.1]} 33... Qf2 {[%clk 0:00:03.8]} 34.
h4 {[%clk 0:00:25.4]} 34... Be3 {[%clk 0:00:02.2]} 35. h5 {[%clk 0:00:22.6]}
35... Kh8 {[%clk 0:00:01.9]} 36. Kh3 {[%clk 0:00:19.6]} 36... Qf1 {[%clk
0:00:02.2]} 37. Kh2 {[%clk 0:00:12.8]} 37... Qc1 {[%clk 0:00:02.7]} 38. Qf8+
{[%clk 0:00:07.1]} 38... Kh7 {[%clk 0:00:02.9]} 39. Qf5+ {[%clk 0:00:07]} 39...
Kh8 {[%clk 0:00:03.5]} 40. g3 {[%clk 0:00:06.8]} 40... Qf1 {[%clk 0:00:04.2]}
41. Qf8+ {[%clk 0:00:05.8]} 41... Kh7 {[%clk 0:00:04.3]} 42. Qf5+ {[%clk
0:00:05.6]} 42... Kh8 {[%clk 0:00:04.9]} 43. Qe4 {[%clk 0:00:04.9]} 43... Bc5
{[%clk 0:00:03.6]} 44. Ne5 {[%clk 0:00:04.1]} 44... Bg1+ {[%clk 0:00:02.9]} 45.
Kh1 {[%clk 0:00:04.2]} 45... Bf2+ {[%clk 0:00:03.6]} 46. Kh2 {[%clk 0:00:02.5]}
46... Qg1+ {[%clk 0:00:04.5]} 47. Kh3 {[%clk 0:00:03.4]} 47... Qxg3# {[%clk
0:00:05.4]} 0-1